bitfinex/quotes_ETHUSD_20250810
["timestamp","ask_amount","ask_price","bid_price","bid_amount"]
[1754786478148,3.619,4286.4,4286.0,2.33316627]
[1754786479343,3.619,4286.4,4286.1,2.33312327]
[1754786479747,3.619,4286.4,4286.0,2.33317521]
[1754786480152,3.619,4286.4,4286.1,2.33312296]
[1754786480474,3.619,4286.4,4286.0,2.33316328]
[1754786481259,3.619,4286.4,4285.9,2.33322809]
[1754786481260,4.27281108,4286.4,4285.9,2.33322809]
[1754786481462,4.27281108,4286.4,4286.0,2.33317406]
[1754786481971,4.27281108,4286.4,4286.1,2.33311955]
[1754786482172,4.27281108,4286.4,4286.2,0.4386]
[1754786482382,4.27281108,4286.4,4286.0,2.33317224]
[1754786482578,4.27281108,4286.4,4285.9,2.33323017]
[1754786482783,4.27281108,4286.4,4286.0,2.33315939]
[1754786482983,3.619,4286.4,4286.0,2.33315939]
[1754786484882,3.619,4286.4,4285.9,2.33321972]
[1754786485083,3.619,4286.4,4286.0,2.33317233]
[1754786485585,2.3330919,4286.2,4285.8,0.001]
[1754786485762,2.33317846,4286.0,4285.8,0.001]
[1754786486081,5.95223222,4285.9,4285.8,0.001]
[1754786486282,6.90893222,4285.9,4285.8,0.001]
[1754786491575,0.4695,4287.1,4285.8,0.8935]
[1754786491781,2.33252019,4287.3,4285.9,0.8925]
[1754786491977,0.71990461,4287.4,4285.9,0.8925]
[1754786491978,3.619,4286.8,4286.4,2.33292708]
[1754786492172,3.619,4286.8,4286.5,0.8925]
[1754786492367,3.619,4286.8,4286.5,3.22540088]
[1754786492671,3.619,4286.8,4286.6,0.8925]
[1754786492877,3.619,4286.8,4286.3,0.4386]
[1754786493166,4.21437062,4286.8,4286.4,0.4386]
[1754786493694,4.21437062,4286.8,4285.9,0.4386]
[1754786494085,4.21437062,4286.8,4286.1,2.33312335]
[1754786494622,4.21437062,4286.8,4286.2,0.4386]
[1754786495197,4.21437062,4286.8,4286.2,2.77166431]
[1754786495395,4.21437062,4286.8,4286.3,2.33301448]
[1754786495763,4.21437062,4286.8,4286.4,0.8925]
[1754786495963,0.1168,4286.5,4286.4,0.8925]
[1754786496198,3.7348,4286.5,4286.4,0.8925]
[1754786497294,3.7348,4286.5,4286.4,0.4386]
[1754786498466,0.1168,4286.5,4286.4,0.4386]
[1754786498662,0.1168,4286.5,4286.4,3.22546005]
[1754786498867,3.7348,4286.5,4286.4,3.22546005]
[1754786499194,0.002,4286.9,4286.8,2.33274237]
[1754786499693,0.002,4286.9,4286.8,2.44954237]
[1754786499893,0.002,4286.9,4286.8,3.34204237]
[1754786501395,0.002,4286.9,4286.8,2.44954237]
[1754786501896,0.002,4286.9,4286.8,0.5554]
[1754786502123,0.002,4286.9,4286.8,0.8925]
[1754786502298,0.002,4286.9,4286.8,3.22524237]
[1754786502672,0.002,4286.9,4286.8,0.8925]
[1754786502968,0.002,4286.9,4286.8,3.22524237]
[1754786503868,0.002,4286.9,4286.5,0.1168]
[1754786504705,0.002,4286.9,4286.5,0.5554]
[1754786505098,2.3346943,4286.9,4286.5,0.5554]
[1754786505497,2.3346943,4286.9,4286.5,0.1168]
[1754786505498,5.97320558,4286.8,4286.5,0.1168]
[1754786505799,5.94974832,4286.8,4286.5,0.1168]
[1754786506021,3.617,4286.8,4286.5,0.1168]
[1754786506186,4.20513683,4286.8,4286.2,0.71217]
[1754786506809,2.33279757,4286.7,4286.2,0.71217]
[1754786507109,3.22005371,4286.7,4286.2,0.71217]
[1754786507315,0.88725692,4286.7,4286.2,0.71217]
[1754786507530,3.22009307,4286.7,4286.2,0.71217]
[1754786507881,3.2200672,4286.7,4286.2,0.71217]
[1754786508078,3.7338,4286.8,4286.3,0.9003]
[1754786508281,3.7338,4286.8,4286.4,0.9003]
[1754786508509,2.33288944,4286.6,4286.2,0.59537]
[1754786508812,2.33293796,4286.5,4285.8,0.001]
[1754786509020,3.617,4286.4,4285.9,0.700589]
[1754786509202,0.3617,4286.3,4285.9,0.700589]
[1754786509525,2.69472885,4286.3,4285.9,0.700589]
[1754786509681,0.3617,4286.3,4285.9,0.700589]
[1754786509890,2.33469303,4286.9,4286.1,2.33312335]
[1754786510098,3.617,4286.8,4286.2,3.23332003]
[1754786510418,3.617,4286.8,4286.3,2.33301274]
[1754786510710,3.617,4286.8,4286.3,0.4451]
[1754786510914,3.617,4286.8,4286.4,3.23321681]
[1754786511083,0.002,4286.9,4286.5,0.9003]
[1754786511283,0.002,4286.9,4286.6,0.9003]
[1754786511500,0.002,4286.9,4286.8,2.33274237]
[1754786512106,0.002,4286.9,4286.8,3.23304237]
[1754786514414,0.002,4286.9,4286.8,0.9003]
[1754786514585,0.002,4286.9,4286.7,0.700452]
[1754786514785,0.3639,4286.9,4286.7,0.700452]
[1754786515387,0.002,4286.9,4286.7,0.700452]
[1754786515588,0.002,4286.9,4286.7,3.03323816]
[1754786518331,0.002,4286.9,4286.8,2.33274237]
[1754786518695,0.002,4286.9,4286.8,2.77784237]
[1754786519101,0.002,4286.9,4286.8,3.23304237]
[1754786521200,0.002,4286.9,4286.8,2.77784237]
[1754786521405,0.002,4286.9,4286.8,3.37316979]
[1754786521732,0.002,4286.9,4286.8,3.34984237]
[1754786522402,0.002,4286.9,4286.8,6.37316979]
[1754786522602,0.002,4286.9,4286.8,6.34984237]
[1754786522800,0.000634,4287.3,4287.2,2.33252472]
[1754786523307,0.000634,4287.3,4287.2,3.34962472]
[1754786523524,0.000634,4287.3,4287.2,4.04997072]
[1754786523726,0.000634,4287.3,4287.2,0.817146]
[1754786523925,0.000634,4287.3,4287.2,3.03287072]
[1754786524127,0.000634,4287.3,4287.2,3.93317072]
[1754786524324,0.000634,4287.3,4287.2,3.47797072]
[1754786524524,0.000634,4287.3,4287.2,3.03287072]
[1754786526414,0.000634,4287.3,4287.2,3.93317072]
[1754786527116,0.000634,4287.3,4287.2,3.95649596]
[1754786527329,0.000634,4287.3,4287.2,4.04997072]
[1754786529436,0.000634,4287.3,4287.2,7.04997072]
[1754786530622,0.000634,4287.3,4287.2,6.93317072]
[1754786534668,1e-08,4287.9,4287.7,2.33225272]
[1754786534840,1e-08,4287.9,4287.8,8.94619833]
[1754786535617,1e-08,4287.9,4287.8,6.39129833]
[1754786536233,1e-08,4287.9,4287.8,2.77729833]
[1754786536439,1e-08,4287.9,4287.8,5.94519833]
[1754786537475,1e-08,4287.9,4287.8,2.33219833]
[1754786540679,1e-08,4287.9,4287.8,2.44899833]
[1754786543581,1e-08,4287.9,4287.8,0.1178]
[1754786543792,0.00200001,4287.9,4287.8,0.1178]
[1754786543989,0.00200001,4287.9,4287.8,2.44999833]
[1754786544308,0.00200001,4287.9,4287.8,0.1178]
[1754786544989,0.00200001,4287.9,4287.8,2.44999833]
[1754786545764,0.00200001,4287.9,4287.8,0.1178]
[1754786546475,0.00200001,4287.9,4287.8,2.44999833]
[1754786546871,0.00200001,4287.9,4287.8,0.1178]
[1754786547072,0.00200001,4287.9,4287.8,0.001]
[1754786547271,0.94130001,4287.9,4287.8,0.001]
[1754786548409,3.61246308,4287.9,4287.8,0.001]
[1754786548694,10.24792034,4287.9,4287.8,0.001]
[1754786548897,10.22446308,4287.9,4287.8,0.001]
[1754786550179,10.77446308,4287.9,4287.8,0.001]
[1754786553274,18.52447144,4287.9,4287.8,1e-08]
[1754786553689,19.15292572,4287.9,4287.8,1e-08]
[1754786553873,13.86904026,4287.4,4287.3,1e-08]
[1754786554072,25.53598657,4287.4,4287.3,1e-08]
[1754786554288,26.47528657,4287.4,4287.3,1e-08]
[1754786556304,26.25731117,4287.4,4287.3,1e-08]
[1754786558020,33.28731117,4287.4,4287.3,1e-08]
[1754786558220,32.78527821,4287.4,4287.3,1e-08]
[1754786558523,33.28575739,4287.4,4287.3,1e-08]
[1754786559338,21.68713304,4287.4,4287.3,1e-08]
[1754786559540,16.58055386,4287.4,4287.3,1e-08]
[1754786559719,20.30935386,4287.4,4287.3,1e-08]
[1754786559918,20.30935386,4287.4,4287.3,0.45640001]
[1754786559919,5.7148,4287.4,4287.3,0.45640001]
[1754786560102,5.7148,4287.4,4287.3,0.92590001]
[1754786560288,9.3268,4287.4,4287.3,0.92590001]
[1754786560496,12.3268,4287.4,4287.3,0.92590001]
[1754786560722,9.3268,4287.4,4287.3,0.92590001]
[1754786561319,12.3268,4287.4,4287.3,0.92590001]
[1754786561491,12.99887525,4287.4,4287.3,0.92590001]
[1754786562323,0.1168,4287.4,4287.3,3.25837032]
[1754786562819,3.61400001,4287.9,4287.6,2.33226181]
[1754786562992,3.61400001,4287.9,4287.7,2.33225202]
[1754786563195,3.61400001,4287.9,4287.8,0.9259]
[1754786563925,3.61400001,4287.9,4287.8,3.25809833]
[1754786564296,3.61400001,4287.9,4287.8,0.9259]
[1754786565419,3.61400001,4287.9,4287.8,0.4564]
[1754786565627,3.61400001,4287.9,4287.8,0.9259]
[1754786568125,3.61400001,4287.9,4287.8,0.4564]
[1754786568625,3.61400001,4287.9,4287.8,0.9376]
[1754786569217,3.61400001,4287.9,4287.8,3.26979833]
[1754786570425,0.00200001,4287.9,4287.8,3.26979833]
[1754786572900,0.00200001,4287.9,4287.8,3.38659833]
[1754786577110,0.00200001,4287.9,4287.8,6.99659833]
[1754786577621,1e-08,4287.9,4287.8,9.99659833]
[1754786579606,1e-08,4287.9,4287.8,10.54659833]
[1754786581759,1e-08,4287.9,4287.8,6.93659833]
[1754786582063,1e-08,4287.9,4287.8,5.44899833]
[1754786582362,0.90710001,4287.9,4287.8,2.44899833]
[1754786582718,1e-08,4287.9,4287.8,2.44899833]
[1754786583117,1e-08,4287.9,4287.8,3.36759833]
[1754786583754,1e-08,4287.9,4287.8,2.88639833]
[1754786584956,1e-08,4287.9,4287.8,0.1168]
[1754786585157,1e-08,4287.9,4287.8,2.44899833]
[1754786587650,1e-08,4287.9,4287.8,0.1168]
[1754786588550,0.90710001,4287.9,4287.6,0.1168]
[1754786589521,0.9071,4287.8,4287.6,0.1168]
[1754786590254,1e-08,4287.9,4287.6,0.1168]
[1754786592855,0.33559045,4287.9,4287.6,0.1168]
[1754786593045,0.9071,4287.8,4287.6,0.1168]
[1754786593248,0.9071,4287.8,4287.4,0.1168]
[1754786594453,0.9071,4287.7,4287.3,1e-08]
[1754786594660,0.1168,4287.6,4287.3,1e-08]
[1754786595865,0.9071,4287.8,4287.3,1e-08]
[1754786596068,0.1168,4287.6,4287.3,1e-08]
[1754786597432,0.41922441,4287.6,4287.3,2.3324624]
[1754786597757,0.1168,4287.6,4287.3,2.33246395]
[1754786597961,0.1168,4287.6,4287.3,1e-08]
[1754786598459,0.1168,4287.6,4287.3,2.3324575]
[1754786598637,0.1168,4287.6,4287.5,2.33236151]
[1754786599042,0.1168,4287.6,4287.5,3.23356151]
[1754786599240,1e-08,4287.9,4287.8,2.33219833]
[1754786599440,1e-08,4287.9,4287.8,2.44899833]
[1754786599635,1e-08,4287.9,4287.8,3.35019833]
[1754786601166,1e-08,4287.9,4287.8,6.37352031]
[1754786601343,1e-08,4287.9,4287.8,6.35019833]
[1754786605569,1e-08,4287.9,4287.8,5.44899833]
[1754786605953,1e-08,4287.9,4287.8,5.89219833]
[1754786606351,1e-08,4287.9,4287.8,6.23339833]
[1754786606570,1e-08,4287.9,4287.8,6.35019833]
[1754786606764,1e-08,4287.9,4287.8,6.23339833]
[1754786606969,1e-08,4287.9,4287.8,6.35019833]
[1754786607680,1e-08,4287.9,4287.8,2.89219833]
[1754786607973,1e-08,4287.9,4287.8,3.35019833]
[1754786610274,1e-08,4287.9,4287.8,6.05599833]
[1754786611449,1e-08,4287.9,4287.7,0.1168]
[1754786611644,1e-08,4287.9,4287.8,2.33219833]
[1754786612146,1e-08,4287.9,4287.8,3.23339833]
[1754786612487,1e-08,4287.9,4287.8,6.23339833]
[1754786613258,1e-08,4287.9,4287.8,9.83939833]
[1754786617202,1e-08,4287.9,4287.8,10.38939833]
[1754786618467,1e-08,4288.4,4287.9,5.88214393]
[1754786618680,1e-08,4288.4,4288.1,3.0]
[1754786618879,1e-08,4288.4,4288.2,2.33198078]
[1754786619071,1e-08,4288.4,4288.3,8.9379264]
[1754786619272,1e-08,4288.4,4288.3,9.8391264]
[1754786619703,1e-08,4288.4,4288.3,8.9379264]
[1754786621508,1e-08,4288.4,4288.3,9.0547264]
[1754786621696,1e-08,4288.4,4288.3,9.9559264]
[1754786622509,1e-08,4288.4,4288.3,9.4979264]
[1754786623769,1e-08,4288.4,4288.3,9.0537264]
[1754786624822,1e-08,4288.4,4288.3,5.4487264]
[1754786625005,1e-08,4288.4,4288.3,9.0537264]
[1754786625194,1e-08,4288.4,4288.3,2.4487264]
[1754786625507,0.91330001,4288.4,4288.3,2.4487264]
[1754786625715,1e-08,4288.4,4288.3,2.4487264]
[1754786626102,1e-08,4288.4,4288.3,5.4487264]
[1754786626412,1e-08,4288.4,4288.3,2.4487264]
[1754786632418,0.90820001,4288.4,4288.3,2.4487264]
[1754786632819,1e-08,4288.4,4288.3,10.85164181]
[1754786633020,1e-08,4288.4,4288.3,14.3255418]
[1754786633228,1e-08,4288.4,4288.3,5.4487264]
[1754786633393,1e-08,4288.4,4288.3,9.9448264]
[1754786635722,1e-08,4288.4,4288.3,9.4942264]
[1754786635922,1e-08,4288.4,4288.3,9.9448264]
[1754786638626,1e-08,4288.4,4288.3,9.0537264]
[1754786639327,1e-08,4288.4,4288.3,9.9448264]
[1754786642628,1e-08,4288.4,4288.3,14.3255418]
[1754786642832,1e-08,4288.4,4288.3,13.4344418]
[1754786642998,1e-08,4288.4,4288.3,17.0384418]
[1754786643197,1e-08,4288.4,4288.3,17.4789418]
[1754786643931,1e-08,4288.4,4288.3,13.8749418]
[1754786644132,1e-08,4288.4,4288.3,17.4789418]
[1754786645142,1e-08,4288.4,4288.3,13.4344418]
[1754786645310,1e-08,4288.4,4288.3,2.3319264]
[1754786645509,0.21230001,4288.4,4288.3,2.3319264]
[1754786645712,1e-08,4288.4,4288.3,2.3319264]
[1754786647333,0.63980001,4288.7,4288.6,2.33176327]
[1754786647845,0.63980001,4288.7,4288.5,2.33180675]
[1754786648132,0.2123,4288.6,4288.5,2.33180675]
[1754786648341,0.2123,4288.6,4288.2,2.33195854]
[1754786648932,0.04,4288.9,4288.3,2.33192495]
[1754786649141,0.44945003,4288.8,4288.3,2.33192495]
[1754786649341,0.2123,4288.7,4288.3,2.33192495]
[1754786649513,0.4775,4288.6,4288.3,2.33192495]
[1754786649718,0.6898,4288.5,4288.4,2.33187202]
[1754786650038,0.2123,4288.5,4288.2,2.33192867]
[1754786650338,0.2123,4288.5,4287.9,0.700194]
[1754786650339,0.2123,4288.5,4288.4,2.33183614]
[1754786650646,0.6898,4288.5,4288.4,2.33183614]
[1754786650806,0.6898,4288.5,4288.2,2.33198078]
[1754786651003,0.6898,4288.5,4288.3,2.33190843]
[1754786651229,0.9082,4288.4,4288.2,2.33196854]
[1754786651543,0.4307,4288.3,4288.2,2.33196854]
[1754786651948,0.4775,4288.4,4288.3,2.3319264]
[1754786652440,0.9082,4288.4,4288.3,2.3319264]
[1754786654125,0.002,4288.6,4288.3,2.3319264]
[1754786654422,0.9082,4288.5,4288.3,2.3319264]
[1754786654824,0.9082,4288.5,4288.4,2.33187202]
[1754786655153,0.9082,4288.5,4288.2,2.33197147]
[1754786655314,0.9082,4288.4,4288.1,0.001]
[1754786655739,0.1168,4288.5,4288.1,0.001]
[1754786655947,0.9082,4288.3,4288.1,0.001]
[1754786656114,0.1168,4288.5,4288.1,0.001]
[1754786656320,0.5475,4288.5,4288.1,2.3330195]
[1754786656639,0.9082,4288.4,4288.1,0.001]
[1754786656953,0.9082,4288.4,4288.1,2.33302245]
[1754786657452,0.9082,4288.4,4288.2,2.33196168]
[1754786657754,0.4307,4288.4,4288.1,2.33302406]
[1754786658437,0.1168,4288.5,4288.1,0.001]
[1754786658637,0.8927,4288.4,4288.1,0.001]
[1754786658953,0.02345726,4288.3,4288.1,0.001]
[1754786659247,0.91615726,4288.3,4288.1,0.001]
[1754786659559,1.22917901,4288.2,4288.1,0.001]
[1754786659735,0.8927,4288.2,4288.1,0.001]
[1754786660819,0.4424,4288.2,4288.1,0.001]
[1754786661543,1.0095,4288.5,4288.1,0.001]
[1754786661746,0.8927,4288.4,4288.1,0.001]
[1754786662656,0.8927,4288.4,4288.1,2.3330344]
[1754786662862,0.1168,4288.5,4288.1,2.3330344]
[1754786663159,0.1168,4288.5,4288.2,2.33198078]
[1754786663340,0.002,4288.6,4288.5,2.33181765]
[1754786664447,0.002,4288.6,4288.5,2.76121765]
[1754786664620,0.002,4288.6,4288.5,3.23231765]
[1754786664827,0.002,4288.6,4288.5,2.76121765]
[1754786665146,0.002,4288.6,4288.5,2.33181765]
[1754786665824,0.002,4288.6,4288.5,2.76121765]
[1754786666224,0.002,4288.6,4288.5,2.33181765]
[1754786669527,0.002,4288.6,4288.2,0.1168]
[1754786669862,0.002,4288.6,4288.1,0.1178]
[1754786669863,0.8927,4288.5,4288.1,2.44983222]
[1754786670425,0.8927,4288.5,4288.2,2.33197331]
[1754786670625,0.8927,4288.5,4288.1,2.44982917]
[1754786670837,0.8927,4288.4,4288.1,0.001]
[1754786671436,0.4424,4288.4,4288.1,0.001]
[1754786671641,0.1188,4288.6,4288.2,2.33194189]
[1754786672057,0.1188,4288.6,4288.1,2.33303101]
[1754786672258,0.5612,4288.6,4288.1,2.33303101]
[1754786672463,0.73168649,4288.5,4288.1,0.001]
[1754786672763,1.18198649,4288.5,4288.1,0.001]
[1754786672957,0.73958649,4288.5,4288.1,0.001]
[1754786673262,0.8927,4288.4,4288.1,0.001]
[1754786674160,0.4503,4288.4,4288.1,0.001]
[1754786674365,0.4424,4288.3,4288.1,0.001]
[1754786675063,4.0533,4288.4,4288.2,2.33198078]
[1754786675366,4.0533,4288.4,4288.2,2.33196782]
[1754786675566,3.603,4288.4,4288.2,2.33196782]
[1754786675966,3.603,4288.4,4288.1,2.33303384]
[1754786676165,3.603,4288.4,4288.2,2.33198078]
[1754786677164,0.28928649,4288.5,4288.1,0.001]
[1754786677372,3.602,4288.5,4288.4,2.33187202]
[1754786677871,3.602,4288.5,4288.3,2.33192405]
[1754786678066,3.602,4288.5,4288.3,2.33191735]
[1754786678265,3.602,4288.5,4288.4,2.33187202]
[1754786678669,0.002,4288.6,4288.5,2.33181765]
[1754786678874,0.002,4288.6,4288.5,3.23231765]
[1754786679173,0.002,4288.6,4288.5,3.46591765]
[1754786681551,0.002,4288.6,4288.5,2.56541765]
[1754786682278,0.002,4288.6,4288.5,3.46591765]
[1754786682948,0.002,4288.6,4288.5,3.34911765]
[1754786683373,0.002,4288.6,4288.5,2.44861765]
[1754786683776,0.002,4288.6,4288.5,0.1168]
[1754786684147,0.002,4288.6,4288.5,2.44861765]
[1754786685457,0.002,4288.6,4288.5,3.34911765]
[1754786686382,0.002,4288.6,4288.5,2.44861765]
[1754786687797,0.002,4288.6,4288.5,2.92131765]
[1754786688000,0.002,4288.6,4288.5,3.38681765]
[1754786690794,0.002,4288.6,4288.5,3.41013582]
[1754786691459,0.002,4288.6,4288.5,7.01113582]
[1754786691656,0.002,4288.6,4288.5,9.98781765]
[1754786693586,0.002,4288.6,4288.5,9.14295565]
[1754786693804,0.002,4288.6,4288.5,9.04961765]
[1754786694384,0.002,4288.6,4288.5,9.52231765]
[1754786694792,0.002,4288.6,4288.5,9.98781765]
[1754786696598,0.002,4288.6,4288.5,14.37253305]
[1754786696800,0.002,4288.6,4288.5,17.97253305]
[1754786696970,0.002,4288.6,4288.5,18.06587105]
[1754786697169,16.226,4290.5,4289.5,2.33127404]
[1754786697488,0.1168,4290.2,4289.5,2.44807404]
[1754786697690,0.1168,4290.2,4289.5,2.92077404]
[1754786698399,0.1168,4290.2,4289.5,2.44807404]
[1754786699781,0.2898,4290.2,4289.5,2.44807404]
[1754786700186,0.2898,4290.2,4289.5,0.1168]
[1754786700187,0.02345726,4289.8,4289.5,0.1168]
[1754786700500,0.1568,4289.9,4289.5,2.33127404]
[1754786701011,0.04,4289.9,4289.5,2.33127404]
[1754786701317,0.04,4289.9,4289.5,2.80397404]
[1754786701670,0.04,4289.9,4289.5,2.33127404]
[1754786703012,0.9248,4289.6,4289.3,0.1168]
[1754786703309,0.9228,4289.5,4289.3,2.33133466]
[1754786703518,0.9228,4289.4,4288.9,2.33154628]
[1754786703674,0.4704,4289.3,4289.2,2.33143224]
[1754786704004,0.4704,4289.3,4289.1,2.33148179]
[1754786704207,0.4704,4289.3,4288.9,2.44839999]
[1754786704408,0.002,4289.6,4288.7,2.33169269]
[1754786704409,0.4724,4289.6,4288.7,2.33169269]
[1754786704606,0.4724,4289.6,4287.9,0.4727]
[1754786704607,0.1168,4289.0,4288.4,0.1168]
[1754786704783,0.1168,4289.0,4288.9,2.33160017]
[1754786705512,0.1168,4289.0,4288.8,2.33164148]
[1754786705808,0.1168,4289.0,4288.9,2.33160017]
[1754786706015,0.1168,4289.0,4288.6,2.33171643]
[1754786706227,0.4704,4288.9,4288.1,0.4665]
[1754786706518,0.1168,4288.7,4288.1,0.1178]
[1754786706720,0.1168,4288.7,4288.1,2.44983078]
[1754786706890,0.1168,4288.7,4288.2,2.33197702]
[1754786707278,0.1168,4288.7,4288.1,0.1178]
[1754786707279,0.4704,4288.6,4288.1,0.1178]
[1754786707488,0.4704,4288.6,4288.2,2.33193105]
[1754786708128,0.02345726,4288.5,4288.1,0.1178]
[1754786708328,0.1168,4288.4,4288.1,0.001]
[1754786708622,0.1168,4288.4,4288.1,2.33302444]
[1754786709218,0.1168,4288.4,4288.2,2.33196772]
[1754786710178,0.1168,4288.4,4288.1,0.001]
[1754786710381,0.1168,4288.4,4288.3,2.3319264]
[1754786711013,0.1168,4288.4,4288.2,2.3319678]
[1754786711413,0.1168,4288.4,4288.1,2.33302135]
[1754786712098,0.1168,4288.4,4288.2,2.33196521]
[1754786712717,0.1168,4288.4,4288.1,2.33302123]
[1754786713017,0.1168,4288.4,4288.2,2.33192848]
[1754786713402,0.1168,4288.4,4288.1,2.333032]
[1754786713889,0.1168,4288.4,4288.1,0.001]
[1754786714687,0.1168,4288.4,4288.1,2.33302118]
[1754786714933,0.1168,4288.4,4288.2,2.33197941]
[1754786715530,0.1168,4288.4,4288.1,0.001]
[1754786715732,0.1168,4288.4,4288.2,2.33196589]
[1754786716016,0.1168,4288.4,4288.2,2.33198078]
[1754786716220,0.1168,4288.4,4288.3,2.3319264]
[1754786716820,3.598,4288.8,4288.3,0.9382]
[1754786717033,0.1168,4288.8,4288.7,2.3317089]
[1754786717238,0.1168,4288.8,4288.6,2.33175985]
[1754786717797,0.1168,4288.8,4288.4,2.33186235]
[1754786717996,1.0254,4288.8,4288.4,2.33186235]
[1754786718295,0.1168,4288.8,4288.3,2.33190917]
[1754786718493,0.81228918,4288.8,4288.3,2.33190917]
[1754786718922,0.81228918,4288.8,4288.4,2.33185481]
[1754786719424,0.81228918,4288.8,4288.5,0.4431]
[1754786719626,0.1168,4288.8,4288.4,0.4681]
[1754786719824,0.1168,4288.8,4288.5,0.4431]
[1754786720031,0.1168,4289.0,4288.8,2.33160522]
[1754786720231,0.1168,4289.0,4288.7,2.331694]
[1754786720832,0.1168,4289.0,4288.8,2.33164011]
[1754786721417,0.1168,4289.0,4288.9,2.33160017]
[1754786721605,0.1168,4289.0,4288.6,3.24295722]
[1754786721606,0.1168,4289.0,4288.7,2.33166372]
[1754786722013,0.1168,4289.0,4288.8,2.33163752]
[1754786724434,0.1168,4289.0,4288.8,2.33163868]
[1754786724638,0.1168,4289.0,4288.9,0.21533247]
[1754786731546,0.1168,4289.0,4288.9,2.54693264]
[1754786731753,0.1168,4289.0,4288.9,0.21533247]
[1754786733129,0.48828,4289.0,4288.9,0.21533247]
[1754786735658,0.48828,4289.0,4288.9,0.21584444]
[1754786739648,0.1168,4289.0,4288.9,2.54744461]
[1754786739850,0.002,4289.5,4288.9,1.12704444]
[1754786740051,0.002,4289.5,4289.4,2.33132839]
[1754786740355,0.002,4289.5,4289.4,3.57517283]
[1754786740935,0.002,4289.5,4289.4,3.10707283]
[1754786741136,0.002,4289.5,4289.4,3.57517283]
[1754786742041,0.002,4289.5,4289.4,0.21584444]
[1754786742042,3.597,4289.5,4289.4,0.21584444]
[1754786742262,4.0737,4289.5,4289.4,0.21584444]
[1754786742636,4.0737,4289.5,4289.4,0.65894444]
[1754786742936,3.7138,4289.5,4289.4,3.45837283]
[1754786743143,0.002,4289.5,4289.4,3.45837283]
[1754786743467,3.596,4289.5,4289.4,3.45837283]
[1754786743768,0.002,4289.5,4289.4,3.57517283]
[1754786747069,0.002,4289.5,4289.4,0.21584444]
[1754786747786,0.14225726,4289.5,4289.4,0.21584444]
[1754786748078,1.0419,4289.5,4289.4,0.21584444]
[1754786748246,0.1188,4289.5,4289.4,0.21584444]
[1754786749762,0.002,4289.5,4289.4,3.58087283]
[1754786750779,0.002,4289.5,4289.4,4.28089183]
[1754786751079,0.04,4291.9,4289.9,0.55]
[1754786751381,0.04,4291.9,4291.3,2.33028988]
[1754786751683,3.593,4291.7,4291.4,0.21584444]
[1754786751850,0.6593,4291.5,4291.4,0.21584444]
[1754786752050,0.6593,4291.5,4291.4,0.91556944]
[1754786752255,3.593,4291.7,4291.4,1.34756944]
[1754786752575,3.593,4291.7,4291.5,0.21584444]
[1754786752779,3.593,4291.7,4291.4,0.699725]
[1754786752989,3.593,4291.7,4291.5,0.64688847]
[1754786753166,3.593,4291.7,4291.6,0.21488847]
[1754786753372,0.04,4291.9,4291.6,1.13178847]
[1754786753676,0.04,4291.9,4291.7,1.13178847]
[1754786753877,0.04,4291.9,4291.8,0.21488847]
[1754786754249,0.04,4291.9,4291.8,1.13178847]
[1754786754454,0.04,4291.9,4291.8,11.44752856]
[1754786754656,0.04,4291.9,4291.8,9.11750387]
[1754786754857,0.04,4291.9,4291.8,11.44752856]
[1754786756680,0.04,4291.9,4291.8,15.04352856]
[1754786757360,0.04,4291.9,4291.8,7.05781316]
[1754786757686,0.04,4291.9,4291.8,15.04352856]
[1754786758878,0.04,4291.9,4291.8,15.04250468]
[1754786760172,0.04,4291.9,4291.8,0.21386459]
[1754786760650,0.04,4291.9,4291.8,3.46078928]
[1754786761054,0.04,4291.9,4291.8,3.57758928]
[1754786761479,0.042,4291.9,4291.8,7.17158928]
[1754786762255,0.042,4291.9,4291.8,15.15730468]
[1754786762979,0.042,4291.9,4291.8,0.33066459]
[1754786763255,0.042,4291.9,4291.8,2.66068928]
[1754786764092,0.042,4291.9,4291.8,0.33066459]
[1754786764277,0.042,4291.9,4291.8,2.66068928]
[1754786764583,0.042,4291.9,4291.8,0.33066459]
[1754786765084,0.042,4291.9,4291.8,2.66068928]
[1754786765784,0.042,4291.9,4291.8,0.33066459]
[1754786765978,0.042,4291.9,4291.8,2.66068928]
[1754786766191,0.042,4291.9,4291.8,0.33066459]
[1754786766688,0.042,4291.9,4291.8,0.33069668]
[1754786771708,0.042,4291.9,4291.8,0.21389668]
[1754786773985,0.2916668,4291.9,4291.8,0.21389668]
[1754786774295,3.2950704,4291.9,4291.8,0.21389668]
[1754786775380,2.33021872,4291.5,4291.3,0.699671]
[1754786775579,0.9231,4291.5,4291.4,0.21455929]
[1754786775774,3.591,4291.7,4291.4,0.21455929]
[1754786776095,3.591,4291.7,4291.5,0.21455929]
[1754786776096,2.33013328,4291.6,4291.5,0.21455929]
[1754786776401,3.73333328,4291.6,4291.5,0.21455929]
[1754786776698,7.30679054,4291.6,4291.5,0.21455929]
[1754786776897,7.28333328,4291.6,4291.5,0.21455929]
[1754786778072,14.31333328,4291.6,4291.5,0.21455929]
[1754786778377,2.33040426,4291.2,4290.6,0.001]
[1754786778698,2.33040426,4291.2,4289.5,0.1168]
[1754786778699,2.33090957,4290.2,4289.5,0.1168]
[1754786778998,0.1168,4290.1,4289.5,0.1168]
[1754786779298,0.1168,4289.7,4289.1,0.1168]
[1754786779676,0.1168,4289.7,4288.6,0.04]
[1754786779677,3.61445726,4289.6,4288.6,0.04]
[1754786779868,0.1168,4289.2,4288.6,0.1568]
[1754786780070,0.459,4289.1,4288.6,0.04]
[1754786780271,0.1168,4288.7,4288.6,0.04]
[1754786780800,0.5758,4288.7,4288.6,0.04]
[1754786781104,2.9075089,4288.7,4288.6,0.04]
[1754786781284,0.5758,4288.7,4288.6,0.04]